[Event "Titled Tuesday Blitz March 22 Early 2022"]
[White "Neiksans, Arturs"]
[Black "Kozak, Antoni"]
[WhiteFideId "11601388"]
[BlackFideId "21832030"]
[WhiteElo "2447"]
[BlackElo "2236"]
[Result "1-0"]
[Round "07"]
[TimeControl "180+1"]
[Date "2022.03.22"]
[WhiteClock "0:00:13"]
[BlackClock "0:00:03"]

1. e4 {[%clk 0:03:00]}  c5 {[%clk 0:02:56]} 2. Nf3 {[%clk 0:02:59]}  d6 {[%clk 0:02:54]} 3. Bb5+ {[%clk 0:02:58]}  Bd7 {[%clk 0:02:52]} 4. Bxd7+ {[%clk 0:02:58]}  Nxd7 {[%clk 0:02:51]} 5. O-O {[%clk 0:02:57]}  Ngf6 {[%clk 0:02:51]} 6. Qe2 {[%clk 0:02:55]}  e6 {[%clk 0:02:51]} 7. d4 {[%clk 0:02:53]}  cxd4 {[%clk 0:02:45]} 8. Nxd4 {[%clk 0:02:53]}  Be7 {[%clk 0:02:45]} 9. c4 {[%clk 0:02:53]}  O-O {[%clk 0:02:45]} 10. Nc3 {[%clk 0:02:51]}  a6 {[%clk 0:02:41]} 11. b3 {[%clk 0:02:43]}  Qa5 {[%clk 0:02:40]} 12. Bb2 {[%clk 0:02:43]}  Rfc8 {[%clk 0:02:40]} 13. Rac1 {[%clk 0:02:41]}  Qh5 {[%clk 0:02:19]} 14. f3 {[%clk 0:02:33]}  Bd8 {[%clk 0:02:11]} 15. Kh1 {[%clk 0:02:33]}  Bc7 {[%clk 0:02:04]} 16. g3 {[%clk 0:02:27]}  Rab8 {[%clk 0:01:50]} 17. Nd1 {[%clk 0:02:16]}  d5 {[%clk 0:01:19]} 18. cxd5 {[%clk 0:02:13]}  exd5 {[%clk 0:01:19]} 19. Nf5 {[%clk 0:02:00]}  Kh8 {[%clk 0:00:25]} 20. g4 {[%clk 0:01:14]}  Qg5 {[%clk 0:00:21]} 21. Nf2 {[%clk 0:00:52]}  dxe4 {[%clk 0:00:19]} 22. Nh3 {[%clk 0:00:53]}  exf3 {[%clk 0:00:17]} 23. Qxf3 {[%clk 0:00:50]}  Qd2 {[%clk 0:00:16]} 24. Rf2 {[%clk 0:00:44]}  Qd5 {[%clk 0:00:05]} 25. Qxd5 {[%clk 0:00:37]}  Nxd5 {[%clk 0:00:06]} 26. Bxg7+ {[%clk 0:00:36]}  Kg8 {[%clk 0:00:06]} 27. Bd4 {[%clk 0:00:31]}  Be5 {[%clk 0:00:06]} 28. Rd1 {[%clk 0:00:27]}  Bxd4 {[%clk 0:00:06]} 29. Rxd4 {[%clk 0:00:27]}  Rc1+ {[%clk 0:00:06]} 30. Kg2 {[%clk 0:00:27]}  N7b6 {[%clk 0:00:04]} 31. g5 {[%clk 0:00:25]}  Re8 {[%clk 0:00:04]} 32. Nh6+ {[%clk 0:00:25]}  Kg7 {[%clk 0:00:04]} 33. Rxf7+ {[%clk 0:00:25]}  Kg6 {[%clk 0:00:04]} 34. Rf2 {[%clk 0:00:20]}  Ne3+ {[%clk 0:00:04]} 35. Kf3 {[%clk 0:00:17]}  Nbd5 {[%clk 0:00:05]} 36. Nf4+ {[%clk 0:00:14]}  Nxf4 {[%clk 0:00:04]} 37. Rxf4 {[%clk 0:00:14]}  Kxg5 {[%clk 0:00:03]} 38. Nf7+ {[%clk 0:00:14]}  Kg6 {[%clk 0:00:03]} 39. Nd6 {[%clk 0:00:14]}  Re6 {[%clk 0:00:03]} 40. Ne4 {[%clk 0:00:14]}  Nf5 {[%clk 0:00:03]} 41. Rg4+ {[%clk 0:00:13]}  Kh5 {[%clk 0:00:03]} 42. Rg5+ {[%clk 0:00:14]}  Kh6 {[%clk 0:00:04]} 43. Rxf5 {[%clk 0:00:14]}  Rh1 {[%clk 0:00:04]} 44. Ng3 {[%clk 0:00:13]}  Ra1 {[%clk 0:00:03]} 45. Kg2 {[%clk 0:00:13]}  Ree1 {[%clk 0:00:03]} 46. R5f4 {[%clk 0:00:13]}  b5 {[%clk 0:00:04]} 47. Rg4 {[%clk 0:00:13]}  Rg1+ {[%clk 0:00:04]} 48. Kh3 {[%clk 0:00:13]}  Rge1 {[%clk 0:00:04]} 49. Rf5 {[%clk 0:00:13]}  Re6 {[%clk 0:00:03]} 50. Rh5# {[%clk 0:00:13]} 1-0


[Site "https://www.chess.com"]

[Event "Titled Tuesday Blitz March 22 Early 2022"]
[White "Nenezic, Marko"]
[Black "Grischuk, Alexander"]
[WhiteFideId "912123"]
[BlackFideId "4126025"]
[WhiteElo "2457"]
[BlackElo "2762"]
[Result "0-1"]
[Round "07"]
[TimeControl "180+1"]
[Date "2022.03.22"]
[WhiteClock "0:00:03"]
[BlackClock "0:00:37"]

1. Nf3 {[%clk 0:02:56]}  d5 {[%clk 0:02:56]} 2. g3 {[%clk 0:02:56]}  Nc6 {[%clk 0:02:56]} 3. d4 {[%clk 0:02:55]}  Bf5 {[%clk 0:02:57]} 4. Bg2 {[%clk 0:02:54]}  Nb4 {[%clk 0:02:56]} 5. Na3 {[%clk 0:02:55]}  e6 {[%clk 0:02:57]} 6. c3 {[%clk 0:02:54]}  Nc6 {[%clk 0:02:57]} 7. Nc2 {[%clk 0:02:51]}  Nf6 {[%clk 0:02:52]} 8. O-O {[%clk 0:02:47]}  Be7 {[%clk 0:02:51]} 9. Nce1 {[%clk 0:02:42]}  h6 {[%clk 0:02:48]} 10. Nd3 {[%clk 0:02:42]}  O-O {[%clk 0:02:48]} 11. h3 {[%clk 0:02:40]}  a5 {[%clk 0:02:46]} 12. g4 {[%clk 0:02:39]}  Be4 {[%clk 0:02:45]} 13. Bf4 {[%clk 0:02:38]}  a4 {[%clk 0:02:44]} 14. Qd2 {[%clk 0:02:35]}  Na5 {[%clk 0:02:37]} 15. Nfe5 {[%clk 0:02:20]}  Bxg2 {[%clk 0:02:35]} 16. Kxg2 {[%clk 0:02:21]}  Nc4 {[%clk 0:02:05]} 17. Nxc4 {[%clk 0:02:16]}  dxc4 {[%clk 0:02:06]} 18. Ne5 {[%clk 0:02:17]}  a3 {[%clk 0:01:53]} 19. Rab1 {[%clk 0:01:59]}  b5 {[%clk 0:01:26]} 20. b3 {[%clk 0:01:45]}  c5 {[%clk 0:01:07]} 21. bxc4 {[%clk 0:01:25]}  bxc4 {[%clk 0:01:08]} 22. f3 {[%clk 0:01:20]}  Nd5 {[%clk 0:01:00]} 23. Bg3 {[%clk 0:00:42]}  Bg5 {[%clk 0:00:59]} 24. f4 {[%clk 0:00:40]}  Be7 {[%clk 0:01:00]} 25. e4 {[%clk 0:00:37]}  Nf6 {[%clk 0:01:00]} 26. Qe3 {[%clk 0:00:27]}  Qc8 {[%clk 0:00:57]} 27. f5 {[%clk 0:00:16]}  Rd8 {[%clk 0:00:53]} 28. fxe6 {[%clk 0:00:14]}  fxe6 {[%clk 0:00:54]} 29. Ng6 {[%clk 0:00:14]}  Qd7 {[%clk 0:00:53]} 30. Be5 {[%clk 0:00:14]}  cxd4 {[%clk 0:00:50]} 31. cxd4 {[%clk 0:00:14]}  Nh7 {[%clk 0:00:45]} 32. Nxe7+ {[%clk 0:00:12]}  Qxe7 {[%clk 0:00:46]} 33. Rbc1 {[%clk 0:00:09]}  Rac8 {[%clk 0:00:45]} 34. Rc3 {[%clk 0:00:10]}  Ng5 {[%clk 0:00:44]} 35. Rfc1 {[%clk 0:00:10]}  Qb7 {[%clk 0:00:42]} 36. Rxc4 {[%clk 0:00:06]}  Qb2+ {[%clk 0:00:40]} 37. Kh1 {[%clk 0:00:04]}  Rxc4 {[%clk 0:00:39]} 38. Rxc4 {[%clk 0:00:05]}  Rf8 {[%clk 0:00:38]} 39. Rc1 {[%clk 0:00:03]}  Rf3 {[%clk 0:00:37]} 0-1


[Site "https://www.chess.com"]

[Event "Titled Tuesday Blitz March 22 Early 2022"]
[White "Nguyen, Thien Ngan"]
[Black "Kornyukov, Alexey"]
[WhiteFideId "12414816"]
[BlackFideId "4150457"]
[WhiteElo "1917"]
[BlackElo "2303"]
[Result "1-0"]
[Round "07"]
[TimeControl "180+1"]
[Date "2022.03.22"]
[WhiteClock "0:01:00"]
[BlackClock "0:01:57"]

1. e4 {[%clk 0:02:56]}  c5 {[%clk 0:02:59]} 2. Nf3 {[%clk 0:02:39]}  d6 {[%clk 0:02:58]} 3. d4 {[%clk 0:02:38]}  cxd4 {[%clk 0:02:59]} 4. Nxd4 {[%clk 0:02:38]}  e5 {[%clk 0:02:59]} 5. Nb5 {[%clk 0:02:26]}  a6 {[%clk 0:02:57]} 6. N5a3 {[%clk 0:02:26]}  Nf6 {[%clk 0:02:53]} 7. Nc3 {[%clk 0:02:26]}  Nc6 {[%clk 0:02:52]} 8. Bg5 {[%clk 0:02:24]}  Be7 {[%clk 0:02:49]} 9. Bxf6 {[%clk 0:02:22]}  Bxf6 {[%clk 0:02:49]} 10. Nd5 {[%clk 0:02:19]}  Be6 {[%clk 0:02:46]} 11. c3 {[%clk 0:02:18]}  Bxd5 {[%clk 0:02:43]} 12. Qxd5 {[%clk 0:02:05]}  Qc7 {[%clk 0:02:38]} 13. Nc4 {[%clk 0:02:01]}  Rd8 {[%clk 0:02:31]} 14. Ne3 {[%clk 0:01:59]}  O-O {[%clk 0:02:28]} 15. Be2 {[%clk 0:01:52]}  Ne7 {[%clk 0:02:25]} 16. Qd3 {[%clk 0:01:50]}  Ng6 {[%clk 0:02:24]} 17. Nd5 {[%clk 0:01:20]}  Qc6 {[%clk 0:02:14]} 18. O-O {[%clk 0:01:14]}  Nf4 {[%clk 0:02:07]} 19. Nxf4 {[%clk 0:01:12]}  exf4 {[%clk 0:02:07]} 20. Rfd1 {[%clk 0:01:09]}  Be5 {[%clk 0:02:05]} 21. Qd5 {[%clk 0:01:00]}  Qxd5 {[%clk 0:01:57]} 1-0


[Site "https://www.chess.com"]

[Event "Titled Tuesday Blitz March 22 Early 2022"]
[White "Omariev, Maksim"]
[Black "Tristan, Leonardo"]
[WhiteFideId "4193423"]
[BlackFideId "113816"]
[WhiteElo "2518"]
[BlackElo "2404"]
[Result "0-1"]
[Round "07"]
[TimeControl "180+1"]
[Date "2022.03.22"]
[WhiteClock "0:00:19"]
[BlackClock "0:01:32"]

1. g4 {[%clk 0:03:00]}  e5 {[%clk 0:02:58]} 2. Bg2 {[%clk 0:03:01]}  h5 {[%clk 0:02:58]} 3. gxh5 {[%clk 0:02:58]}  Qh4 {[%clk 0:02:59]} 4. Nc3 {[%clk 0:02:48]}  Nf6 {[%clk 0:02:51]} 5. Nf3 {[%clk 0:02:37]}  Qg4 {[%clk 0:02:51]} 6. Rg1 {[%clk 0:02:32]}  Qxh5 {[%clk 0:02:51]} 7. d4 {[%clk 0:01:43]}  e4 {[%clk 0:02:48]} 8. Ng5 {[%clk 0:01:40]}  Qxh2 {[%clk 0:02:42]} 9. Kf1 {[%clk 0:01:38]}  d5 {[%clk 0:02:41]} 10. Be3 {[%clk 0:01:30]}  c6 {[%clk 0:02:35]} 11. Qd2 {[%clk 0:01:30]}  Ng4 {[%clk 0:02:34]} 12. Bf4 {[%clk 0:01:29]}  Qh4 {[%clk 0:02:23]} 13. Bg3 {[%clk 0:01:17]}  e3 {[%clk 0:02:19]} 14. Bxh4 {[%clk 0:01:07]}  Nh2+ {[%clk 0:02:18]} 15. Ke1 {[%clk 0:01:03]}  exd2+ {[%clk 0:02:19]} 16. Kxd2 {[%clk 0:01:04]}  Rxh4 {[%clk 0:02:20]} 17. Rh1 {[%clk 0:00:53]}  Rxd4+ {[%clk 0:02:15]} 18. Ke3 {[%clk 0:00:48]}  Rg4 {[%clk 0:02:12]} 19. Rxh2 {[%clk 0:00:38]}  d4+ {[%clk 0:02:07]} 20. Kf3 {[%clk 0:00:36]}  dxc3 {[%clk 0:02:08]} 21. Ne4 {[%clk 0:00:34]}  cxb2 {[%clk 0:01:57]} 22. Rb1 {[%clk 0:00:31]}  f5 {[%clk 0:01:45]} 23. Ng3 {[%clk 0:00:26]}  Rb4 {[%clk 0:01:44]} 24. Rh8 {[%clk 0:00:24]}  g5 {[%clk 0:01:38]} 25. Nh5 {[%clk 0:00:23]}  Kf7 {[%clk 0:01:34]} 26. Kg3 {[%clk 0:00:20]}  Bd6+ {[%clk 0:01:32]} 27. Kh3 {[%clk 0:00:19]}  Rh4# {[%clk 0:01:32]} 0-1


[Site "https://www.chess.com"]

[Event "Titled Tuesday Blitz March 22 Early 2022"]
[White "Omelja, Artem"]
[Black "Dronavalli, Harika"]
[WhiteFideId "14119846"]
[BlackFideId "5015197"]
[WhiteElo "2382"]
[BlackElo "2382"]
[Result "1/2-1/2"]
[Round "07"]
[TimeControl "180+1"]
[Date "2022.03.22"]
[WhiteClock "0:00:03"]
[BlackClock "0:00:19"]

1. d4 {[%clk 0:03:00]}  Nf6 {[%clk 0:02:59]} 2. c4 {[%clk 0:02:59]}  e6 {[%clk 0:02:59]} 3. Nf3 {[%clk 0:02:55]}  d5 {[%clk 0:02:59]} 4. Nc3 {[%clk 0:02:55]}  Bb4 {[%clk 0:02:55]} 5. cxd5 {[%clk 0:02:53]}  exd5 {[%clk 0:02:55]} 6. Qa4+ {[%clk 0:02:54]}  Nc6 {[%clk 0:02:54]} 7. Bg5 {[%clk 0:02:54]}  h6 {[%clk 0:02:48]} 8. Bxf6 {[%clk 0:02:54]}  Qxf6 {[%clk 0:02:48]} 9. e3 {[%clk 0:02:55]}  O-O {[%clk 0:02:43]} 10. Bb5 {[%clk 0:02:32]}  Bd7 {[%clk 0:02:37]} 11. Bxc6 {[%clk 0:02:07]}  Bxc3+ {[%clk 0:02:37]} 12. bxc3 {[%clk 0:02:08]}  Bxc6 {[%clk 0:02:37]} 13. Qb3 {[%clk 0:02:09]}  a6 {[%clk 0:02:18]} 14. Ne5 {[%clk 0:01:40]}  Rad8 {[%clk 0:01:56]} 15. O-O {[%clk 0:01:28]}  Bb5 {[%clk 0:01:51]} 16. Rfc1 {[%clk 0:01:20]}  b6 {[%clk 0:01:24]} 17. a4 {[%clk 0:01:05]}  Be2 {[%clk 0:01:14]} 18. Qa2 {[%clk 0:00:39]}  Bh5 {[%clk 0:01:11]} 19. c4 {[%clk 0:00:39]}  dxc4 {[%clk 0:01:07]} 20. Qxc4 {[%clk 0:00:39]}  c5 {[%clk 0:01:07]} 21. Qxa6 {[%clk 0:00:17]}  cxd4 {[%clk 0:01:07]} 22. Nc6 {[%clk 0:00:17]}  dxe3 {[%clk 0:01:01]} 23. Nxd8 {[%clk 0:00:14]}  exf2+ {[%clk 0:00:52]} 24. Kh1 {[%clk 0:00:15]}  Rxd8 {[%clk 0:00:50]} 25. a5 {[%clk 0:00:07]}  bxa5 {[%clk 0:00:34]} 26. Qxf6 {[%clk 0:00:07]}  gxf6 {[%clk 0:00:34]} 27. Rxa5 {[%clk 0:00:07]}  Be2 {[%clk 0:00:34]} 28. Rf5 {[%clk 0:00:06]}  f1=Q+ {[%clk 0:00:28]} 29. Rcxf1 {[%clk 0:00:06]}  Bxf1 {[%clk 0:00:29]} 30. Rxf1 {[%clk 0:00:07]}  Kg7 {[%clk 0:00:29]} 31. h3 {[%clk 0:00:07]}  Rd3 {[%clk 0:00:29]} 32. Kh2 {[%clk 0:00:08]}  h5 {[%clk 0:00:30]} 33. Rf4 {[%clk 0:00:08]}  Kg6 {[%clk 0:00:30]} 34. Ra4 {[%clk 0:00:07]}  f5 {[%clk 0:00:30]} 35. h4 {[%clk 0:00:05]}  Re3 {[%clk 0:00:29]} 36. g3 {[%clk 0:00:04]}  f6 {[%clk 0:00:30]} 37. Ra7 {[%clk 0:00:03]}  Re4 {[%clk 0:00:29]} 38. Kh3 {[%clk 0:00:01]}  Re3 {[%clk 0:00:29]} 39. Ra4 {[%clk 0:00:01]}  Re4 {[%clk 0:00:27]} 40. Ra3 {[%clk 0:00:01]}  f4 {[%clk 0:00:28]} 41. gxf4 {[%clk 0:00:02]}  Rxf4 {[%clk 0:00:28]} 42. Rg3+ {[%clk 0:00:02]}  Kf5 {[%clk 0:00:28]} 43. Ra3 {[%clk 0:00:03]}  Re4 {[%clk 0:00:26]} 44. Ra5+ {[%clk 0:00:03]}  Kg6 {[%clk 0:00:27]} 45. Ra3 {[%clk 0:00:03]}  Re6 {[%clk 0:00:27]} 46. Kg3 {[%clk 0:00:03]}  Rd6 {[%clk 0:00:26]} 47. Ra4 {[%clk 0:00:02]}  Rd3+ {[%clk 0:00:24]} 48. Kg2 {[%clk 0:00:03]}  Re3 {[%clk 0:00:24]} 49. Rb4 {[%clk 0:00:02]}  Kf5 {[%clk 0:00:19]} 50. Rb5+ {[%clk 0:00:03]}  Re5 {[%clk 0:00:20]} 51. Rb3 {[%clk 0:00:01]}  Kg4 {[%clk 0:00:19]} 52. Rb4+ {[%clk 0:00:02]}  Kf5 {[%clk 0:00:19]} 53. Rb3 {[%clk 0:00:02]}  Re4 {[%clk 0:00:19]} 54. Rb5+ {[%clk 0:00:02]}  Kg4 {[%clk 0:00:19]} 55. Rb6 {[%clk 0:00:02]}  Rf4 {[%clk 0:00:18]} 56. Rb3 {[%clk 0:00:01]}  Kxh4 {[%clk 0:00:18]} 57. Rh3+ {[%clk 0:00:02]}  Kg5 {[%clk 0:00:18]} 58. Rb3 {[%clk 0:00:03]}  h4 {[%clk 0:00:18]} 59. Kh3 {[%clk 0:00:03]}  f5 {[%clk 0:00:18]} 60. Rb8 {[%clk 0:00:02]}  Re4 {[%clk 0:00:19]} 61. Rg8+ {[%clk 0:00:01]}  Kf6 {[%clk 0:00:19]} 62. Rf8+ {[%clk 0:00:01]}  Kg6 {[%clk 0:00:19]} 63. Rg8+ {[%clk 0:00:01]}  Kf6 {[%clk 0:00:20]} 64. Rf8+ {[%clk 0:00:01]}  Ke5 {[%clk 0:00:20]} 65. Rg8 {[%clk 0:00:02]}  Rd4 {[%clk 0:00:19]} 66. Re8+ {[%clk 0:00:02]}  Kf6 {[%clk 0:00:19]} 67. Rf8+ {[%clk 0:00:02]}  Kg6 {[%clk 0:00:19]} 68. Rg8+ {[%clk 0:00:02]}  Kf7 {[%clk 0:00:20]} 69. Rg5 {[%clk 0:00:02]}  Kf6 {[%clk 0:00:20]} 70. Rg8 {[%clk 0:00:03]}  Ke5 {[%clk 0:00:19]} 71. Re8+ {[%clk 0:00:03]}  Kf4 {[%clk 0:00:20]} 72. Kxh4 {[%clk 0:00:03]}  Rd3 {[%clk 0:00:20]} 73. Rf8 {[%clk 0:00:02]}  Rf3 {[%clk 0:00:20]} 74. Rf7 {[%clk 0:00:01]}  Rf2 {[%clk 0:00:19]} 75. Kh3 {[%clk 0:00:01]}  Ra2 {[%clk 0:00:18]} 76. Rf8 {[%clk 0:00:01]}  Rb2 {[%clk 0:00:16]} 77. Rf7 {[%clk 0:00:01]}  Rc2 {[%clk 0:00:16]} 78. Rf8 {[%clk 0:00:01]}  Ke4 {[%clk 0:00:17]} 79. Re8+ {[%clk 0:00:01]}  Kf3 {[%clk 0:00:17]} 80. Kh4 {[%clk 0:00:01]}  f4 {[%clk 0:00:17]} 81. Rf8 {[%clk 0:00:01]}  Rh2+ {[%clk 0:00:17]} 82. Kg5 {[%clk 0:00:02]}  Rg2+ {[%clk 0:00:18]} 83. Kf5 {[%clk 0:00:02]}  Kg3 {[%clk 0:00:18]} 84. Rg8+ {[%clk 0:00:02]}  Kf3 {[%clk 0:00:18]} 85. Rxg2 {[%clk 0:00:02]}  Kxg2 {[%clk 0:00:19]} 86. Kxf4 {[%clk 0:00:03]} 1/2-1/2


[Site "https://www.chess.com"]

[Event "Titled Tuesday Blitz March 22 Early 2022"]
[White "Perez Gormaz, Matias"]
[Black "Guseva, Marina"]
[WhiteFideId "3406342"]
[BlackFideId "4149351"]
[WhiteElo "2327"]
[BlackElo "2160"]
[Result "1-0"]
[Round "07"]
[TimeControl "180+1"]
[Date "2022.03.22"]
[WhiteClock "0:00:33"]
[BlackClock "0:00:10"]

1. e4 {[%clk 0:02:58]}  c5 {[%clk 0:02:59]} 2. Nf3 {[%clk 0:02:59]}  Nc6 {[%clk 0:02:58]} 3. Bb5 {[%clk 0:02:56]}  g6 {[%clk 0:02:51]} 4. O-O {[%clk 0:02:55]}  Bg7 {[%clk 0:02:49]} 5. Re1 {[%clk 0:02:55]}  Nf6 {[%clk 0:02:39]} 6. c3 {[%clk 0:02:54]}  O-O {[%clk 0:02:38]} 7. d4 {[%clk 0:02:54]}  d5 {[%clk 0:02:37]} 8. e5 {[%clk 0:02:54]}  Ne4 {[%clk 0:02:37]} 9. Bxc6 {[%clk 0:02:55]}  bxc6 {[%clk 0:02:36]} 10. Be3 {[%clk 0:02:56]}  cxd4 {[%clk 0:02:31]} 11. cxd4 {[%clk 0:02:57]}  Qb6 {[%clk 0:02:30]} 12. Qc1 {[%clk 0:02:55]}  a5 {[%clk 0:02:23]} 13. Nc3 {[%clk 0:02:47]}  Nxc3 {[%clk 0:02:19]} 14. Qxc3 {[%clk 0:02:48]}  Ba6 {[%clk 0:02:14]} 15. Rac1 {[%clk 0:02:47]}  Bb5 {[%clk 0:02:06]} 16. Qd2 {[%clk 0:02:39]}  a4 {[%clk 0:02:05]} 17. Bh6 {[%clk 0:02:35]}  Bc4 {[%clk 0:02:04]} 18. Bxg7 {[%clk 0:02:34]}  Kxg7 {[%clk 0:02:03]} 19. a3 {[%clk 0:02:34]}  Rab8 {[%clk 0:02:02]} 20. Rc2 {[%clk 0:02:33]}  c5 {[%clk 0:01:41]} 21. h4 {[%clk 0:02:29]}  cxd4 {[%clk 0:01:40]} 22. Nxd4 {[%clk 0:02:29]}  e6 {[%clk 0:01:24]} 23. h5 {[%clk 0:02:27]}  Rfc8 {[%clk 0:01:12]} 24. Re3 {[%clk 0:02:21]}  Bb3 {[%clk 0:00:59]} 25. Rxc8 {[%clk 0:02:19]}  Rxc8 {[%clk 0:00:59]} 26. Rh3 {[%clk 0:02:07]}  Kg8 {[%clk 0:00:50]} 27. hxg6 {[%clk 0:01:40]}  fxg6 {[%clk 0:00:50]} 28. Rf3 {[%clk 0:01:38]}  Qc7 {[%clk 0:00:33]} 29. Qf4 {[%clk 0:01:33]}  Qe7 {[%clk 0:00:24]} 30. Qf6 {[%clk 0:01:24]}  Qxf6 {[%clk 0:00:20]} 31. Rxf6 {[%clk 0:01:25]}  Rc1+ {[%clk 0:00:20]} 32. Kh2 {[%clk 0:01:25]}  Rb1 {[%clk 0:00:19]} 33. Nxe6 {[%clk 0:01:24]}  h5 {[%clk 0:00:19]} 34. Rxg6+ {[%clk 0:01:17]}  Kh7 {[%clk 0:00:19]} 35. Rg5 {[%clk 0:01:08]}  Rxb2 {[%clk 0:00:18]} 36. f4 {[%clk 0:01:08]}  Rd2 {[%clk 0:00:16]} 37. Rg7+ {[%clk 0:01:05]}  Kh8 {[%clk 0:00:16]} 38. Rd7 {[%clk 0:01:05]}  d4 {[%clk 0:00:15]} 39. Rxd4 {[%clk 0:00:58]}  Ra2 {[%clk 0:00:14]} 40. Ng5 {[%clk 0:00:52]}  Rxa3 {[%clk 0:00:13]} 41. e6 {[%clk 0:00:52]}  Bxe6 {[%clk 0:00:11]} 42. Nxe6 {[%clk 0:00:52]}  Re3 {[%clk 0:00:12]} 43. Ng5 {[%clk 0:00:51]}  a3 {[%clk 0:00:11]} 44. Ra4 {[%clk 0:00:51]}  Kg7 {[%clk 0:00:11]} 45. g3 {[%clk 0:00:50]}  Kg6 {[%clk 0:00:11]} 46. Kh3 {[%clk 0:00:50]}  Kf5 {[%clk 0:00:11]} 47. Kh4 {[%clk 0:00:48]}  Kg6 {[%clk 0:00:10]} 48. Ra6+ {[%clk 0:00:48]}  Kf5 {[%clk 0:00:11]} 49. Ra5+ {[%clk 0:00:49]}  Kg6 {[%clk 0:00:11]} 50. Ra6+ {[%clk 0:00:48]}  Kf5 {[%clk 0:00:11]} 51. Ra8 {[%clk 0:00:39]}  Re1 {[%clk 0:00:10]} 52. Rxa3 {[%clk 0:00:32]}  Rh1+ {[%clk 0:00:09]} 53. Nh3 {[%clk 0:00:33]}  Rh2 {[%clk 0:00:10]} 54. Ra5+ {[%clk 0:00:33]}  Ke4 {[%clk 0:00:10]} 55. Rxh5 {[%clk 0:00:33]}  Kf3 {[%clk 0:00:10]} 56. Ra5 {[%clk 0:00:33]} 1-0


[Site "https://www.chess.com"]

[Event "Titled Tuesday Blitz March 22 Early 2022"]
[White "Pesotskiy, Mikhail"]
[Black "Tsyhanchuk, Stanislav"]
[WhiteFideId "34164453"]
[BlackFideId "13505130"]
[WhiteElo "2010"]
[BlackElo "2078"]
[Result "1-0"]
[Round "07"]
[TimeControl "180+1"]
[Date "2022.03.22"]
[WhiteClock "0:01:46"]
[BlackClock "0:00:01"]

1. d4 {[%clk 0:02:42]}  d5 {[%clk 0:02:58]} 2. c4 {[%clk 0:02:43]}  c6 {[%clk 0:02:58]} 3. Nf3 {[%clk 0:02:43]}  Nf6 {[%clk 0:02:58]} 4. Nbd2 {[%clk 0:02:44]}  Bf5 {[%clk 0:02:53]} 5. Nh4 {[%clk 0:02:44]}  Bg6 {[%clk 0:02:52]} 6. Qb3 {[%clk 0:02:44]}  Qb6 {[%clk 0:02:51]} 7. Qh3 {[%clk 0:02:45]}  Nbd7 {[%clk 0:02:31]} 8. Nxg6 {[%clk 0:02:45]}  fxg6 {[%clk 0:02:20]} 9. e3 {[%clk 0:02:45]}  Kf7 {[%clk 0:02:16]} 10. Bd3 {[%clk 0:02:41]}  e6 {[%clk 0:02:14]} 11. O-O {[%clk 0:02:41]}  Qc7 {[%clk 0:02:05]} 12. Nf3 {[%clk 0:02:40]}  Re8 {[%clk 0:01:06]} 13. Ng5+ {[%clk 0:02:39]}  Kg8 {[%clk 0:01:06]} 14. Nxe6 {[%clk 0:02:39]}  Qd6 {[%clk 0:01:05]} 15. Nxf8 {[%clk 0:02:19]}  Nxf8 {[%clk 0:01:01]} 16. Bd2 {[%clk 0:02:20]}  Ne6 {[%clk 0:01:01]} 17. cxd5 {[%clk 0:02:18]}  cxd5 {[%clk 0:00:50]} 18. Rac1 {[%clk 0:02:15]}  Ng5 {[%clk 0:00:48]} 19. Qg3 {[%clk 0:02:14]}  Qxg3 {[%clk 0:00:45]} 20. hxg3 {[%clk 0:02:14]}  Nge4 {[%clk 0:00:44]} 21. Bb4 {[%clk 0:02:10]}  h5 {[%clk 0:00:30]} 22. Rc7 {[%clk 0:02:00]}  h4 {[%clk 0:00:26]} 23. gxh4 {[%clk 0:02:01]}  Rxh4 {[%clk 0:00:24]} 24. Rfc1 {[%clk 0:02:01]}  Kh7 {[%clk 0:00:15]} 25. Re7 {[%clk 0:01:55]}  Rxe7 {[%clk 0:00:07]} 26. Bxe7 {[%clk 0:01:55]}  Rh5 {[%clk 0:00:04]} 27. Rc7 {[%clk 0:01:55]}  b6 {[%clk 0:00:03]} 28. Rxa7 {[%clk 0:01:50]}  Rh4 {[%clk 0:00:02]} 29. Bf8 {[%clk 0:01:50]}  Kg8 {[%clk 0:00:01]} 30. Bxg7 {[%clk 0:01:49]}  Nh5 {[%clk 0:00:02]} 31. Be5 {[%clk 0:01:47]}  Nhf6 {[%clk 0:00:01]} 32. f3 {[%clk 0:01:46]} 1-0


[Site "https://www.chess.com"]

[Event "Titled Tuesday Blitz March 22 Early 2022"]
[White "Petrova, Irina"]
[Black "Winkels, Marcel"]
[WhiteFideId "14124122"]
[BlackFideId "1003887"]
[WhiteElo "1993"]
[BlackElo "1900"]
[Result "1-0"]
[Round "07"]
[TimeControl "180+1"]
[Date "2022.03.22"]
[WhiteClock "0:00:18"]
[BlackClock "0:00:01"]

1. e4 {[%clk 0:03:00]}  c5 {[%clk 0:02:58]} 2. Nf3 {[%clk 0:03:00]}  d6 {[%clk 0:02:59]} 3. Bb5+ {[%clk 0:03:01]}  Nd7 {[%clk 0:02:57]} 4. O-O {[%clk 0:03:00]}  a6 {[%clk 0:02:56]} 5. Bxd7+ {[%clk 0:03:00]}  Bxd7 {[%clk 0:02:55]} 6. d4 {[%clk 0:03:01]}  cxd4 {[%clk 0:02:55]} 7. Qxd4 {[%clk 0:03:02]}  e5 {[%clk 0:02:52]} 8. Qd3 {[%clk 0:03:02]}  h6 {[%clk 0:02:51]} 9. a4 {[%clk 0:03:02]}  Nf6 {[%clk 0:02:47]} 10. c4 {[%clk 0:03:01]}  Be7 {[%clk 0:02:40]} 11. Nc3 {[%clk 0:03:01]}  Be6 {[%clk 0:02:32]} 12. b3 {[%clk 0:03:01]}  O-O {[%clk 0:02:25]} 13. Rd1 {[%clk 0:03:00]}  Rc8 {[%clk 0:02:15]} 14. Ba3 {[%clk 0:02:58]}  Qb6 {[%clk 0:02:10]} 15. Nd2 {[%clk 0:02:49]}  Rfd8 {[%clk 0:02:00]} 16. Rdb1 {[%clk 0:02:27]}  Ng4 {[%clk 0:01:50]} 17. Qe2 {[%clk 0:02:24]}  Bg5 {[%clk 0:01:41]} 18. Nf1 {[%clk 0:02:22]}  Qd4 {[%clk 0:01:28]} 19. Bb2 {[%clk 0:02:15]}  Qb6 {[%clk 0:01:26]} 20. h3 {[%clk 0:02:04]}  Nf6 {[%clk 0:01:21]} 21. Ba3 {[%clk 0:01:52]}  Qd4 {[%clk 0:01:13]} 22. Qc2 {[%clk 0:01:34]}  Nh5 {[%clk 0:01:07]} 23. Rd1 {[%clk 0:01:33]}  Qb6 {[%clk 0:01:06]} 24. a5 {[%clk 0:01:29]}  Qc7 {[%clk 0:01:05]} 25. Ne3 {[%clk 0:01:18]}  Nf4 {[%clk 0:01:00]} 26. Ned5 {[%clk 0:01:18]}  Bxd5 {[%clk 0:00:54]} 27. Nxd5 {[%clk 0:01:19]}  Nxd5 {[%clk 0:00:42]} 28. Rxd5 {[%clk 0:01:19]}  b5 {[%clk 0:00:35]} 29. axb6 {[%clk 0:01:18]}  Qxb6 {[%clk 0:00:35]} 30. Rad1 {[%clk 0:01:17]}  Be7 {[%clk 0:00:34]} 31. R1d3 {[%clk 0:01:15]}  Rb8 {[%clk 0:00:31]} 32. Qd1 {[%clk 0:01:14]}  a5 {[%clk 0:00:25]} 33. Rb5 {[%clk 0:01:13]}  Qc7 {[%clk 0:00:22]} 34. Rxb8 {[%clk 0:01:12]}  Rxb8 {[%clk 0:00:22]} 35. g3 {[%clk 0:00:53]}  Qb7 {[%clk 0:00:21]} 36. f3 {[%clk 0:00:45]}  Qb6+ {[%clk 0:00:19]} 37. Kg2 {[%clk 0:00:45]}  Qb7 {[%clk 0:00:19]} 38. h4 {[%clk 0:00:45]}  g6 {[%clk 0:00:18]} 39. Qd2 {[%clk 0:00:43]}  Kg7 {[%clk 0:00:17]} 40. Qxa5 {[%clk 0:00:40]}  f5 {[%clk 0:00:15]} 41. Qd5 {[%clk 0:00:32]}  Qa7 {[%clk 0:00:11]} 42. Bxd6 {[%clk 0:00:29]}  Bxd6 {[%clk 0:00:09]} 43. Qxd6 {[%clk 0:00:30]}  Qa2+ {[%clk 0:00:08]} 44. Kh3 {[%clk 0:00:29]}  Rxb3 {[%clk 0:00:09]} 45. exf5 {[%clk 0:00:26]}  Rxd3 {[%clk 0:00:07]} 46. f6+ {[%clk 0:00:24]}  Kf7 {[%clk 0:00:07]} 47. Qxd3 {[%clk 0:00:24]}  Kxf6 {[%clk 0:00:07]} 48. Qd6+ {[%clk 0:00:24]}  Kf7 {[%clk 0:00:05]} 49. Qxe5 {[%clk 0:00:23]}  Qxc4 {[%clk 0:00:02]} 50. Qe4 {[%clk 0:00:20]}  Qf1+ {[%clk 0:00:01]} 51. Kg4 {[%clk 0:00:18]} 1-0


[Site "https://www.chess.com"]